Cogmind - Beta 15 X4 *** ADVENTURER MODE // 2025.04.30 @ 21:44:21 Player: Willow Result: Self-destructed Performance ------------- Evolutions (3) 1500 Regions Visited (7) 1400 Robots Destroyed (137) 685 Value Destroyed (4966) 4966 Prototype IDs (11) 220 Alien Tech Used (0) 0 Bonus (1097) 1097 TOTAL SCORE: 9868 Bonus ------- High Alert Combat Kills 33 Follower Combat Kills 364 Entered Garrisons 200 Used RIF Installer 500 Cogmind --------- Core Integrity 449/700 Matter 133/300 Energy 280/280 System Corruption 1% Temperature Cool (0) Movement Treading (305) Ox2 Location -7/Factory Parts ------- > --- POWER (1) -------- Cooled Ion Engine > --- PROPULSION (2) --- Advanced Treads Advanced Treads > --- UTILITY (8) ------ Improved Heat Sink Huge Storage Unit Improved Targeting Computer Improved Targeting Computer Improved Targeting Computer Core Analyzer Hardened Light Armor Plating Relay Coupler [Sentry] (28) > --- WEAPON (2) ------- Advanced Assault Cannon Gauss Cannon > --- INVENTORY (25) --- Fission Core Advanced Treads Medium Treads Medium Treads Medium Matter Pod (100) Improved Targeting Computer Improved Targeting Computer Hardened Medium Armor Plating Hardened Medium Armor Plating Hardened Medium Armor Plating Hardened Medium Armor Plating Relay Coupler [NC] (35) Relay Coupler [Swarmer] (28) Relay Coupler [Grunt] (35) Relay Coupler [Duelist] (33) Relay Coupler [Sentry] (22) Relay Coupler [Hunter] (21) Enhanced Autogun Gauss Rifle Gauss Rifle Gauss Rifle Heavy Rocket Launcher Remote Datajack Plasma Cutter Chainsword Peak State ------------ > --- POWER ------------ Cooled Ion Engine > --- PROPULSION ------- Advanced Treads Advanced Treads > --- UTILITY ---------- Improved Heat Sink Huge Storage Unit Improved Targeting Computer Improved Targeting Computer Improved Targeting Computer Core Analyzer Hardened Light Armor Plating Corruption Screen > --- WEAPON ----------- Advanced Assault Cannon Gauss Cannon > --- INVENTORY -------- Fission Core Advanced Treads Large Storage Unit Medium Matter Pod Improved Targeting Computer Improved Targeting Computer Hardened Medium Armor Plating Hardened Medium Armor Plating Hardened Medium Armor Plating Hardened Medium Armor Plating Relay Coupler [NC] Relay Coupler [Grunt] Relay Coupler [Duelist] Relay Coupler [Sentry] Relay Coupler [Hunter] Improved Assault Rifle Enhanced Autogun Gauss Rifle Gauss Rifle Gauss Rifle Heavy Rocket Launcher Precision Grenade Launcher Remote Datajack Plasma Cutter Chainsword [Rating: 45] Favorites ----------- Power Cooled Ion Engine Engine Cooled Ion Engine Propulsion Improved Treads Treads Improved Treads Utility Improved Targeting Computer Device Cooling System Storage Large Storage Unit Processor Improved Targeting Computer Hackware Relay Coupler [Sentry] Protection Hardened Medium Armor Plating Weapon Heavy Assault Rifle Energy Gun Medium Laser Ballistic Gun Heavy Assault Rifle Ballistic Cannon Advanced Assault Cannon Launcher Precision Grenade Launcher Special Weapon Plasma Cutter Special Melee Weapon Datajack Build | -11 -10 -10 -9 -9 -9 -9 -7 ------- Run | Yrd Mat Min Mat Sto Gar Rec Fac Slots Evolved 6 | . . . 2 . . . 4 Power . | . . . . . . . . Propulsion . | . . . . . . . . Utility 6 | . . . 2 . . . 4 Weapon . | . . . . . . . . Parts Attached 67 | 7 6 . 17 14 5 3 15 Power 7 | 1 . . 3 3 . . . Engine 7 | 1 . . 3 3 . . . Core . | . . . . . . . . Reactor . | . . . . . . . . Propulsion 14 | 2 . . 4 4 1 2 1 Treads 14 | 2 . . 4 4 1 2 1 Leg . | . . . . . . . . Wheel . | . . . . . . . . Hover . | . . . . . . . . Flight . | . . . . . . . . Utility 25 | 2 3 . 5 3 . 1 11 Device 5 | 1 1 . . 2 . . 1 Storage 4 | 1 1 . 1 . . . 1 Processor 7 | . . . 1 . . . 6 Hackware 1 | . . . . . . . 1 Protection 8 | . 1 . 3 1 . 1 2 Artifact . | . . . . . . . . Weapon 21 | 2 3 . 5 4 4 . 3 Energy Gun 4 | 2 1 . . . 1 . . Energy Cannon . | . . . . . . . . Ballistic Gun 12 | . 2 . 5 3 2 . . Ballistic Cannon 2 | . . . . . . . 2 Launcher 1 | . . . . . . . 1 Special Weapon 1 | . . . . 1 . . . Impact Weapon . | . . . . . . . . Slashing Weapon . | . . . . . . . . Piercing Weapon . | . . . . . . . . Special Melee Weapon 1 | . . . . . 1 . . Unidentified Prototypes 3 | . . . . 2 . . 1 Parts Lost 6 | . . . . . 3 . 3 Power . | . . . . . . . . Propulsion 2 | . . . . . 1 . 1 Utility 2 | . . . . . . . 2 Weapon 2 | . . . . . 2 . . Highest Loss Streak 2 | . . . . . 1 . 2 To Critical Strikes . | . . . . . . . . Average Backups 15 | . 7 13 14 14 14 15 22 Power 1 | . 1 1 1 1 1 1 1 Propulsion 3 | . . . 5 5 5 2 1 Utility 7 | . 5 8 6 5 5 10 12 Weapon 2 | . 1 3 . 1 . . 5 Tool/Special . | . . . . . . . . Unused Backups 31 | . 1 . 7 . . 1 22 Power 1 | . . . . . . . 1 Propulsion 6 | . . . 2 . . 1 3 Utility 15 | . . . 4 . . . 11 Weapon 8 | . 1 . 1 . . . 6 Tool/Special 1 | . . . . . . . 1 Average Slot Usage (%) 96 | . 99 100 99 99 100 100 89 Engine 10 | . 14 14 11 11 11 11 6 Treads 21 | . 27 28 21 22 22 22 14 Device 7 | . 4 . 11 10 11 11 4 Storage 10 | . 14 14 11 11 11 11 7 Processor 13 | . . . 7 11 11 11 30 Protection 10 | . 9 14 13 11 11 11 7 Energy Gun 1 | . 7 . . . . . . Ballistic Gun 16 | . 20 28 22 20 21 22 4 Ballistic Cannon 2 | . . . . . . . 10 Peak Build Rating 45 | 7 12 11 20 25 25 27 45 Average Rating 23 | 5 9 10 18 22 23 25 36 On Entrance 15 | . 7 10 11 19 24 25 26 Naked Turns . | . . . . . . . . Heaviest Build 109 | 15 34 34 102 45 104 104 109 Greatest Support 46 | 40 40 40 46 46 46 46 44 Greatest Overweight (x) 2 | 1 . . 2 . 2 2 2 Average Overweight (x) . | . . . . . . 2 2 Largest Inventory Capacity 25 | 8 15 15 25 15 25 25 25 Average Capacity 18 | 7 12 15 15 15 15 25 25 Most Carried 25 | 1 13 15 16 15 18 18 25 Average Carried 15 | . 8 14 14 14 14 15 22 Final Capacity 25 | 8 15 15 15 15 25 25 25 Final Carried 25 | 1 13 15 15 15 18 15 25 Class Distribution -------------------- 78% | Mutant 21% | Bothacker-Mutant Dominant Class ---------------- Mutant | -10/Materials Mutant | -10/Mines Mutant | -9/Materials Mutant | -9/Storage Mutant | -9/Garrison Bothacker-Mutant | -9/Recycling Mutant | -7/Factory Resources | -11 -10 -10 -9 -9 -9 -9 -7 ----------- Run | Yrd Mat Min Mat Sto Gar Rec Fac Matter Collected 3248 | 270 200 72 682 582 576 62 804 Remotely . | . . . . . . . . Salvage Created 5134 | 106 465 111 1431 1166 737 209 909 Parts 333 | 6 15 8 98 90 52 11 53 Haulers Intercepted 4 | . 2 . 2 . . . . Recyclers Shooed 4 | . . . 2 . . . 2 Parts Field Recycled . | . . . . . . . . Retrieved Matter . | . . . . . . . . Parts Self-Destructed . | . . . . . . . . Prevented . | . . . . . . . . Kills | -11 -10 -10 -9 -9 -9 -9 -7 ------- Run | Yrd Mat Min Mat Sto Gar Rec Fac Combat Hostiles Destroyed 119 | . 8 4 28 27 24 3 25 Guns 96 | . 8 4 28 27 24 3 2 Cannons 23 | . . . . . . . 23 Classes Destroyed 12 | 2 3 2 3 . 1 . 1 Tunneler 1 | 1 . . . . . . . Hauler 4 | . 2 . 2 . . . . Recycler 3 | 1 . 1 . . . 1 . Operator 1 | . . . 1 . . . . Watcher 10 | . 1 . 4 2 . . 3 Swarmer 22 | . . 2 2 6 12 . . Grunt 52 | . 8 . 16 9 7 . 12 Duelist 2 | . . . 2 . . . . Sentry 29 | . . . 8 12 2 3 4 Hunter 3 | . . . . . . . 3 Programmer 9 | . . . . . 3 . 6 Assembled 1 | . . 1 . . . . . Best Kill Streak 8 | 2 4 2 4 8 5 2 5 Combat Bots Only 7 | . 2 2 4 7 5 2 5 Max Kills in Single Turn 2 | 1 1 1 2 2 2 1 1 Gunslinging 1 | . . . 1 1 1 . . Exploded . | . . . . . . . . Melee . | . . . . . . . . Uniques/NPCs Destroyed 1 | . . 1 . . . . . YI-UF0 (-10/Mines) Combat | -11 -10 -10 -9 -9 -9 -9 -7 -------- Run | Yrd Mat Min Mat Sto Gar Rec Fac Hostile Shots Fired 639 | . 23 12 89 125 143 6 241 Missed 220 | . 10 5 18 41 53 1 92 Hits 419 | . 13 7 71 84 90 5 149 Melee 7 | . . . 7 . . . . Projectile 412 | . 13 7 64 84 90 5 149 Critical Strikes 12 | . . . 2 2 4 1 3 Damage Taken 4299 | . 145 40 767 823 918 65 1541 Core 640 | . 40 16 121 133 70 9 251 Absorbed by Shields . | . . . . . . . . Ignored by Resistances 1294 | . 45 15 227 243 274 18 472 Regen/Repaired (Parts) 480 | . 37 . . 208 . . 235 Core Remaining (%) 64 | 100 . 77 . . . 16 . Volleys Fired 339 | 6 33 12 76 64 66 3 79 Largest 2 | 2 2 2 2 2 2 2 2 Hottest 115 | 90 115 46 46 46 50 46 80 Shots Fired 663 | 12 63 24 154 128 129 7 146 Gun 545 | 12 63 24 154 128 126 7 31 Cannon 115 | . . . . . . . 115 Launcher . | . . . . . . . . Special 3 | . . . . . 3 . . Kinetic 594 | . 10 24 154 128 125 7 146 Thermal 59 | 6 50 . . . 3 . . Explosive . | . . . . . . . . Electromagnetic 10 | 6 3 . . . 1 . . Robot Hit Streak 41 | 4 25 5 22 16 41 11 30 Robot Miss Streak 3 | 1 3 3 2 2 3 . 2 Penetration Max 1 | . . . . . . . 1 Secondary Targets 13 | . . . 2 4 6 . 1 Max Gunslinging Chain 1 | . . . 1 1 1 . 1 Shots Hit Robots 530 | 8 49 12 120 107 109 6 119 Core Hits 220 | 3 20 6 54 42 33 5 57 Critical Kills 1 | . . . 1 . . . . Critical Parts Destroyed 2 | . . . 1 . 1 . . Critical Strikes 17 | . 5 . 2 . 1 . 9 Burn 5 | . 5 . . . . . . Destroy 3 | . . . 2 . 1 . . Blast 9 | . . . . . . . 9 Melee Attacks 3 | . . . . . 3 . . Impact . | . . . . . . . . Slashing . | . . . . . . . . Piercing . | . . . . . . . . Sneak Attacks 3 | . . . . . 3 . . Combat Hostiles . | . . . . . . . . Follow-up Attacks . | . . . . . . . . Damage Inflicted 9297 | 103 685 193 1887 1718 1681 97 2933 Guns 6728 | 103 685 193 1881 1676 1681 91 418 Cannons 2479 | . . . . . . . 2479 Explosions 39 | . . . . 39 . . . Melee . | . . . . . . . . Ramming 51 | . . . 6 3 . 6 36 Kinetic 8514 | . 95 193 1881 1676 1681 91 2897 Thermal 615 | 64 551 . . . . . . Explosive 39 | . . . . 39 . . . Electromagnetic 78 | 39 39 . . . . . . Impact . | . . . . . . . . Slashing . | . . . . . . . . Piercing . | . . . . . . . . Highest Corruption 4 | . . . 1 1 4 4 1 Average Corruption 1 | . . . 1 1 3 4 1 Corruption Purged . | . . . . . . . . Corruption Blocked 2 | . . . . . . . 2 Effects 74 | . . . 6 12 28 20 8 Message Errors 20 | . . . 2 6 4 6 2 Matter Fused 21 | . . . 1 5 8 5 2 Heat Flow Errors 5 | . . . . . 3 2 . Energy Discharges 5 | . . . . . 4 1 . Parts Rejected 2 | . . . . . 1 1 . Data Loss (minor) 9 | . . . 1 1 3 1 3 Data Loss (major) 4 | . . . . . 2 1 1 Misfires 6 | . . . 2 . 3 1 . Alerts 2 | . . . . . . 2 . Overload Shots . | . . . . . . . . Overflow Damage 4 | . . . . . . . 4 Projectiles 4 | . . . . . . . 4 Explosions . | . . . . . . . . Melee . | . . . . . . . . Knockbacks 25 | . . . . . . . 25 Impact . | . . . . . . . . Kinetic 25 | . . . . . . . 25 Secondary . | . . . . . . . . Self-Inflicted Damage 53 | . . . . 53 . . . Shots 1 | . . . . 1 . . . Rammed 9 | . . . 2 1 . 1 5 Targets Rammed 10 | . . . 2 1 . 2 5 Kicked . | . . . . . . . . Crushed 1 | . . . . . . 1 . Highest Temperature 211 | 90 126 18 49 29 211 165 182 Average Temperature 36 | 47 45 15 16 11 103 85 65 Received Heat Transfer 1703 | . 87 20 342 312 237 45 660 Siege Activations . | . . . . . . . . Martial Activations . | . . . . . . . . Shielding Activations . | . . . . . . . . Robots Disrupted . | . . . . . . . . Combat Hostiles . | . . . . . . . . Robots Corrupted . | . . . . . . . . Combat Hostiles . | . . . . . . . . Parts Fried . | . . . . . . . . Impact Corruptions . | . . . . . . . . Robots Melted . | . . . . . . . . Combat Hostiles . | . . . . . . . . Parts Melted 5 | . 5 . . . . . . Heat Transferred 2035 | 185 1850 . . . . . . Parts Sabotaged . | . . . . . . . . Parts Stolen . | . . . . . . . . Parts Stripped . | . . . . . . . . Power Chain Reactions . | . . . . . . . . Alert | -11 -10 -10 -9 -9 -9 -9 -7 ------- Run | Yrd Mat Min Mat Sto Gar Rec Fac Maximum Alert Level 3 | . . . 1 1 3 1 1 Low Security (%) 75 | 100 100 100 71 94 22 23 99 Level 1 14 | . . . 28 5 11 76 . Level 2 5 | . . . . . 35 . . Level 3 5 | . . . . . 30 . . Level 4 . | . . . . . . . . Level 5 . | . . . . . . . . High Security . | . . . . . . . . Max Security . | . . . . . . . . Peak Influence 960 | 5 106 60 267 225 960 390 232 Initial 369 | . . 1 1 . 48 369 137 Average 158 | 1 19 22 106 73 542 262 57 Influence Increases 4499 | 10 336 97 855 865 962 148 1226 Destroy 0b10 Robot/C 2580 | . 160 40 560 540 620 60 600 Destroy 0b10 Robot/NC 95 | 10 15 5 35 10 . 5 15 Destroy Leader 618 | . 46 10 172 164 20 . 206 Allied During Kill 25 | . . . . . 15 3 7 Successful Hack 195 | . 24 12 37 24 12 19 67 Select Force Hacks 270 | . 60 . 30 60 . 60 60 Disable Machine 63 | . . . 18 36 . . 9 Anti-Garrison Action 350 | . . . . . 200 . 150 Destroy Structure 38 | . 1 . 3 16 5 1 12 Advance Influence 100 | . . . . . . . 100 Lose Combat Pursuer 165 | . 30 30 . 15 90 . . Influence Decreases 4267 | 10 330 96 862 780 87 1001 1101 Entered New Map 709 | . . 5 6 . 37 591 70 Time Decay 2948 | 10 330 91 635 491 . 410 981 Lost Part 60 | . . . . . 30 . 30 Lost Ally 179 | . . . . 139 20 . 20 Purge Threat 371 | . . . 221 150 . . . Squads Dispatched 24 | . 2 . 5 4 . . 13 Investigation 13 | . 2 . 4 2 . . 5 Extermination 5 | . . . . . . . 5 Reinforcement 4 | . . . 1 1 . . 2 Assault 1 | . . . . . . . 1 Garrison 1 | . . . . 1 . . . Intercept . | . . . . . . . . Searches Triggered . | . . . . . . . . Construction Impeded . | . . . . . . . . Haulers Reinforced . | . . . . . . . . Active Scanning Responses . | . . . . . . . . Cargo Convoy Interrupts . | . . . . . . . . Stealth | -11 -10 -10 -9 -9 -9 -9 -7 --------- Run | Yrd Mat Min Mat Sto Gar Rec Fac Distress Signals 7 | . . 1 1 5 . . . Communications Jammed . | . . . . . . . . Distress Signals . | . . . . . . . . Times Spotted 154 | . 13 6 34 28 32 3 38 Peak Tracking Total 7 | . 3 3 5 7 6 2 5 Tactical Retreats 7 | . 2 1 . 1 3 . . Traps | -11 -10 -10 -9 -9 -9 -9 -7 ------- Run | Yrd Mat Min Mat Sto Gar Rec Fac Traps Triggered 7 | . 2 . 2 . 3 . . Indirectly . | . . . . . . . . Trap Hack Attempts . | . . . . . . . . Triggered . | . . . . . . . . Disarmed . | . . . . . . . . Reprogrammed . | . . . . . . . . Reused . | . . . . . . . . Traps Extracted . | . . . . . . . . Installed . | . . . . . . . . Triggered . | . . . . . . . . Machines | -11 -10 -10 -9 -9 -9 -9 -7 ---------- Run | Yrd Mat Min Mat Sto Gar Rec Fac Machines Disabled 9 | . . . 2 4 1 . 2 Max in Single Turn 1 | . . . 1 1 1 . 1 Garrison Access 1 | . . . . . . . 1 Garrison Relay 1 | . . . . . 1 . . Machines Repaired . | . . . . . . . . Machines Dismantled 2 | . . . . 2 . . . Machines Sabotaged . | . . . . . . . . Overloaded Fab Kills . | . . . . . . . . Hacking | -11 -10 -10 -9 -9 -9 -9 -7 --------- Run | Yrd Mat Min Mat Sto Gar Rec Fac Machines Accessed 58 | . 11 1 13 11 2 8 12 Terminals 38 | . 8 1 10 6 2 6 5 Fabricators 1 | . . . . . . . 1 Repair Stations 7 | . 1 . 1 2 . . 3 Recycling Units 6 | . 2 . . 2 . 2 . Scanalyzers 5 | . . . 2 . . . 3 Garrison Access 1 | . . . . 1 . . . Total Hacks 175 | . 26 2 49 26 3 23 46 Successful 112 | . 15 2 36 17 1 14 27 Failed 63 | . 11 . 13 9 2 9 19 Catastrophic 4 | . 2 . . 1 . . 1 Database Lockouts . | . . . . . . . . Manual 93 | . 22 2 24 15 . 14 16 Terminals 113 | . 21 2 36 16 3 21 14 Fabricators 1 | . . . . . . . 1 Repair Stations 24 | . 3 . 2 6 . . 13 Recycling Units 7 | . 2 . . 3 . 2 . Scanalyzers 29 | . . . 11 . . . 18 Garrison Access 1 | . . . . 1 . . . Terminal Hacks 32 | . 3 2 16 5 1 5 . Part Schematic 3 | . . 2 1 . . . . Robot Analysis 6 | . 2 . 3 . . 1 . Prototype ID Bank 5 | . . . 2 1 . 2 . Open Door 1 | . . . . 1 . . . Branch Access Points 1 | . . . 1 . . . . Terminal Index 3 | . . . 1 1 . 1 . Recycling Unit Index 1 | . . . . . . 1 . Scanalyzer Index 1 | . . . 1 . . . . Alert Level 2 | . . . 1 1 . . . Unreport Threat 3 | . . . 2 1 . . . Locate Traps 3 | . 1 . 2 . . . . Recall Investigation 1 | . . . 1 . . . . Registered Prototypes 1 | . . . 1 . . . . Patrol Navigation 1 | . . . . . 1 . . Fabricator Hacks 1 | . . . . . . . 1 Network Status 1 | . . . . . . . 1 Repair Station Hacks 14 | . 2 . 1 4 . . 7 Scan Component 8 | . 1 . 1 2 . . 4 Repair 6 | . 1 . . 2 . . 3 Recycling Unit Hacks . | . . . . . . . . Scanalyzer 21 | . . . 10 . . . 11 Insert Component 11 | . . . 5 . . . 6 Analyze 10 | . . . 5 . . . 5 Garrison Access Hacks 1 | . . . . 1 . . . Unlock Access 1 | . . . . 1 . . . Unauthorized Hacks 43 | . 10 . 9 7 . 9 8 Terminals 34 | . 8 . 8 5 . 7 6 Assimilate 1 | . 1 . . . . . . Botnet 7 | . 2 . 2 . . 2 1 Skim 26 | . 5 . 6 5 . 5 5 Fabricators . | . . . . . . . . Repair Stations . | . . . . . . . . Recycling Units 6 | . 2 . . 2 . 2 . Tunnel 6 | . 2 . . 2 . 2 . Scanalyzers 3 | . . . 1 . . . 2 Extract 3 | . . . 1 . . . 2 Garrison Access . | . . . . . . . . Data Cores Recovered . | . . . . . . . . Used . | . . . . . . . . Hacking Detections 43 | . 9 1 11 6 1 5 10 Full Trace Events 5 | . . . 1 . 1 . 3 Feedback Events 1 | . . . 1 . . . . Corruption 1 | . . . 1 . . . . Feedback Blocked . | . . . . . . . . Robot Schematics Acquired . | . . . . . . . . Robots Built . | . . . . . . . . Authchips . | . . . . . . . . Time . | . . . . . . . . Total Robot Build Rating . | . . . . . . . . Part Schematics Acquired 18 | . . 2 9 . . . 7 Parts Built . | . . . . . . . . Authchips . | . . . . . . . . Time . | . . . . . . . . Total Part Build Rating . | . . . . . . . . Parts Repaired 6 | . 1 . . 2 . . 3 Time 233 | . 13 . . 70 . . 150 Parts Recycled . | . . . . . . . . Recycled Matter . | . . . . . . . . Retrieved Matter . | . . . . . . . . Retrieved Components . | . . . . . . . . Parts Scanalyzed 9 | . . . 4 . . . 5 Part Schematics Acquired 8 | . . . 4 . . . 4 Parts Damaged 1 | . . . . . . . 1 Bothacking | -11 -10 -10 -9 -9 -9 -9 -7 ------------ Run | Yrd Mat Min Mat Sto Gar Rec Fac Used RIF Installer 1 | . . . . . 1 . . Robots Hacked . | . . . . . . . . Non-combat . | . . . . . . . . Combat . | . . . . . . . . Robot Hacks Applied . | . . . . . . . . Relay Couplers Released 9 | . . . . . 5 . 4 Machine Destruction 5 | . . . . . 5 . . Programmers 4 | . . . . . . . 4 Attached 1 | . . . . . . . 1 Fabnet Peak Effective % . | . . . . . . . . Robots Rewired 3 | . . . . . 3 . . Allies Hacked . | . . . . . . . . Hacks Repelled . | . . . . . . . . Allies | -11 -10 -10 -9 -9 -9 -9 -7 -------- Run | Yrd Mat Min Mat Sto Gar Rec Fac Total Allies 3 | . . . . . 3 . . Largest Group 3 | . . . . . 3 2 2 Highest-Rated Group 72 | . . . . . 72 48 48 Highest-Rated Ally 24 | . . . . . 24 24 24 Total Orders 13 | . . . . 13 . . . EXPLORE 13 | . . . . 13 . . . Ally Attacks 35 | . . . . . 15 3 17 Total Damage 767 | . . . . . 282 97 388 Kills 12 | . . . . . 7 . 5 Allies Corrupted . | . . . . . . . . Allies Melted . | . . . . . . . . Intel | -11 -10 -10 -9 -9 -9 -9 -7 ------- Run | Yrd Mat Min Mat Sto Gar Rec Fac Active Infowar (turns) 1852 | 19 134 . 1466 233 . . . Seismic 1852 | 19 134 . 1466 233 . . . Robot Analysis Total 6 | . 2 . 3 . . 1 . Derelict Logs Recovered 2 | . . 2 . . . . . Drone Launches 36 | . . . . 36 . . . Drone Recoveries 21 | . . . . 21 . . . Exploration | -11 -10 -10 -9 -9 -9 -9 -7 ------------- Run | Yrd Mat Min Mat Sto Gar Rec Fac Turns Passed 9401 | 76 1415 275 1466 1267 1547 839 2516 Spaces Moved 3709 | 32 659 127 631 553 778 261 668 Core 4 | 4 . . . . . . . Treads 3705 | 28 659 127 631 553 778 261 668 Legs . | . . . . . . . . Wheels . | . . . . . . . . Hover . | . . . . . . . . Flight . | . . . . . . . . Fastest Speed 50 | 50 160 160 160 160 160 305 305 Average Speed 200 | 147 160 160 173 160 168 308 305 Slowest Speed 320 | 160 160 160 320 160 320 320 305 Overloaded Moves . | . . . . . . . . Propulsion Burnouts . | . . . . . . . . Robots Hopped . | . . . . . . . . Potential Cave-ins . | . . . . . . . . Cave-ins Triggered . | . . . . . . . . Exploration Rate (%) 56 | 5 97 36 82 89 68 59 19 Regions Visited 7 Branch Regions 3 Pre-discovered Areas 20 | . 4 1 4 7 . 4 . Known Exits Taken 4 | . . 1 1 1 . 1 . Unknown Exits Taken 2 | 1 1 . . . . . . Scrap Searched 1 | . . 1 . . . . . Spaces Dug 2 | . . . . . . . 2 Terrain Destroyed 25 | . . . . 17 . . 8 Melee . | . . . . . . . . Projectile 8 | . . . . . . . 8 AOE 17 | . . . . 17 . . . Terrain Rammed . | . . . . . . . . Walls Destroyed . | . . . . . . . . Machines Disabled . | . . . . . . . . Actions | -11 -10 -10 -9 -9 -9 -9 -7 --------- Run | Yrd Mat Min Mat Sto Gar Rec Fac Total 4986 | 45 956 175 854 793 888 287 988 Wait 710 | . 239 35 86 126 17 15 192 Move 3702 | 31 658 126 630 553 776 260 668 Hop . | . . . . . . . . Pick Up 58 | 1 13 2 16 1 7 . 18 Fast Attach 35 | 7 4 . 4 7 2 1 10 Attach 16 | . . . 3 2 5 . 6 Detach 3 | . . . . 1 1 . 1 Swap 37 | . 3 . 14 10 5 3 2 Drop 54 | . 6 . 23 13 2 3 7 Fire 339 | 6 33 12 76 64 66 3 79 Melee 3 | . . . . . 3 . . Ram . | . . . . . . . . Kick . | . . . . . . . . Crush 10 | . . . 2 1 . 2 5 Escape Stasis 4 | . . . . . 4 . . Rewire . | . . . . . . . . Trap . | . . . . . . . . Miscellaneous 15 | . . . . 15 . . . Route ------- -11/Scrapyard -10/Materials (discovered 5 exits: *Mat x3 / *Min / *Sub) -10/Mines (discovered 2 exits: *Mat x2) -9/Materials (discovered 6 exits: *Mat x3 / *Min / *Sto x2) -9/Storage (discovered 3 exits: *Mat / Rec / Gar) -9/Garrison (discovered 3 exits: *Rec x3) -9/Recycling (discovered 2 exits: *Fac / Scr) -7/Factory History --------- Turn | Location | Event 25 | -11/Scrapyard | Discovered new exit (range 15) 77 | -11/Scrapyard | Entered Materials 233 | -10/Materials | Discovered new exit (range 7) 308 | -10/Materials | Build established: Mutant 532 | -10/Materials | Discovered new exit (range 4) 777 | -10/Materials | Derelicts attacked the area 880 | -10/Materials | Discovered new exit (range 16) 1126 | -10/Materials | Learned location of 1 exit from Storage 1154 | -10/Materials | Identified exit to Subcaves 1165 | -10/Materials | Discovered new exit (range 3) 1172 | -10/Materials | Loaded intel: 2 recycling unit locations 1240 | -10/Materials | Learned location of Mines (-9) 1294 | -10/Materials | Repaired Lgt. Treads 1492 | -10/Materials | Entered Mines 1493 | -10/Mines | Identified exit to Materials 1505 | -10/Mines | Assembled infested the area 1510 | -10/Mines | Assisted by a Guerilla fighting off Assembled 1732 | -10/Mines | Destroyed YI-UF0 1767 | -10/Mines | Entered Materials 1767 | -9/Materials | Evolved 2 slots: Utility x2 1768 | -9/Materials | Identified exit to Storage 2201 | -9/Materials | Discovered new exit (range 7) 2579 | -9/Materials | Discovered new exit (range 16) 2764 | -9/Materials | Identified exit to Mines 2912 | -9/Materials | Learned Storage emergency access door positions 2980 | -9/Materials | Identified exit to Materials 3038 | -9/Materials | Learned location of Zion (-7) 3124 | -9/Materials | Learned location of Storage (-9) 3233 | -9/Materials | Entered Storage 3234 | -9/Storage | Identified exit to Recycling 3709 | -9/Storage | Lost 3 allies 3902 | -9/Storage | Garrison activated, responded to threat 3961 | -9/Storage | Core integrity fell below 50% 3995 | -9/Storage | Destroyed 7 combat bots 4157 | -9/Storage | Learned 2 Materials zone layouts 4279 | -9/Storage | Repaired Hrd. Medium Armor Plating 4300 | -9/Storage | Repaired Imp. Assault Rifle 4324 | -9/Storage | Learned location of 1 exit from Storage 4386 | -9/Storage | Learned Materials trap positions 4488 | -9/Storage | Learned location of 1 exit from Storage 4500 | -9/Storage | Identified exit to Garrison 4500 | -9/Storage | Entered Garrison 4590 | -9/Garrison | Triggered checkpoint 4763 | -9/Garrison | Discovered exit to Recycling (range 9) 4832 | -9/Garrison | Triggered checkpoint 4874 | -9/Garrison | Triggered checkpoint 4918 | -9/Garrison | Discovered exit to Recycling (range 10) 4950 | -9/Garrison | Triggered checkpoint 5018 | -9/Garrison | Triggered checkpoint 5027 | -9/Garrison | Garrison Relay disabled 5160 | -9/Garrison | Triggered checkpoint 5206 | -9/Garrison | Discovered exit to Recycling (range 12) 5248 | -9/Garrison | Triggered checkpoint 5310 | -9/Garrison | Triggered checkpoint 5490 | -9/Garrison | Triggered checkpoint 5494 | -9/Garrison | Core integrity fell below 20% 5568 | -9/Garrison | Triggered checkpoint 5854 | -9/Garrison | Installed Relay Interface Framework 6047 | -9/Garrison | Entered Recycling 6047 | -9/Recycling | Accompanied by 2 allies 6252 | -9/Recycling | Build established: Bothacker-Mutant 6534 | -9/Recycling | Learned Materials garrison access intel 6598 | -9/Recycling | Identified exit to Factory 6654 | -9/Recycling | Learned Materials security intel 6698 | -9/Recycling | Learned location of 1 exit from Storage 6733 | -9/Recycling | Learned Materials emergency access door positions 6835 | -9/Recycling | Identified exit to Scraptown 6881 | -9/Recycling | Learned Storage emergency access door positions 6886 | -9/Recycling | Entered Factory 6886 | -7/Factory | Accompanied by 2 allies 6886 | -7/Factory | Evolved 4 slots: Utility x4 7217 | -7/Factory | Build established: Mutant 7555 | -7/Factory | P-60 Hacker assimilated allied Shotgunner 2c 8378 | -7/Factory | Repaired Broken Remote Datajack 8417 | -7/Factory | Repaired Adv. Treads 8470 | -7/Factory | Repaired Cld. Ion Engine 8694 | -7/Factory | Build established: Bothacker-Mutant 9402 | -7/Factory | Self-destructed Last Messages --------------- 09369_ Connecting with Terminal... >>Trojan(Skim) Trojan loaded successfully. Testing... Terminal linked with 3 systems. Please expand to 1 more system! 09369_ U-05 Engineer lays Concrete. 09375_ Detecting nearby Garrison Access. 09390_ Slug penetrates G-47 Trooper. 09390_ G-47 Trooper destroyed. 09390_ G-47 Trooper knocked back. 09393_ Critical hit (Burn: +37). 09393_ G-47 Trooper knocked back. 09393_ Slug penetrates G-47 Trooper. 09396_ G-47 Trooper knocked back. 09396_ Slug penetrates Door. 09396_ ALERT: Garrison Access compromised, dispatching assault squad. 09399_ G-47 Trooper suffers critical hit (Blast). 09399_ Destroyed Aluminum Leg. 09399_ G-47 Trooper destroyed. Map ----- +----------------------------------------------------+ | ?????????????????????????????????????????????????? | | ?????????????????????????????????????????????????? | | ?????????????????????????????????????????????????? | | ?????????????????????????????????????????????????? | | ?????????????????????????????????????????????????? | | ?????????????????????????????????????????????????? | | ?????????????????????????????????????????????????? | | ?????????????????????????????????????????????????? | | ?????????????????????????????????????????????????? | | ?????????????????????????????????????????????????? | | ?????????????????????????????????????????????????? | | ?????????????????????????????????????????????????? | | ??????????????????????????? ?????????????????????? | | ??????????????????????????? ?????????????????????? | | ??????????????????????????? ?????????????????????? | | ??????????????????????????? ?????????????????????? | | ??????????????????????????? ?????????????????????? | | ??????????????????????????? #????????????????????? | | ??????????????????????????? #????????????????????? | | ??????????????????????????# #????????????????????? | | ??????????????????????????# #????????????????????? | | ??????????????????????????# #????????????????????? | | ??????????????????????????# #????????????????????? | | ?????????????????????????## ##???????????????????? | | ????????????# % #%#####[ #######?????????????? | | ????????????# "%% ; % @ ?? ?? | | ?????????????? G" ####;## #####???????# ? | | ???????????????????########+############## | | ???????????????????#%!%% """"" # # " | | ???????????????????##!![ ""T"" # # " | | ????????????????????#!!! # !!] + " | | ????????????????????#! # !! # ? | | ????????????????????# # !] # ? | | ????????????????????# !%# ## ##? | | ????????????????????############"!"""###### T#? | | ???????????????????????# """ # #? | | ???????????????????????# "T" " #?? | | ???????????????????????# " " # #?? | | ???????????????????????# # #?? | | ??????????????????????## ] # ### | | ??????????????????????#% % + | | ??????????????????????## # #### | | ???????????????????????# # #??? | | ???????????????????????#######"""" ######+##### | | ?????????????????????????????### # # | | ???????????????????????????????######## """ """ | | ??????????????????????????????????????# """ """ | | ??????????????????????????????????????# """ """ | | ??????????????????????????????????????# | | ??????????????????????????????????????############ | +----------------------------------------------------+ Best States ------------- Heat Dissipation 56 Energy Generation 14 Energy Capacity 280 Matter Stores 300 Matter Capacity 300 Sight Range 16 Terrain Scan Density 10 Corruption Block 8 Armor Coverage 375 Resistance: KI 20 Resistance: TH 20 Resistance: EX 20 Resistance: EM 35 Resistance: I 20 Resistance: S 20 Resistance: P 20 Evasion (%) 40 Targeting Accuracy 29 Core Analysis 6 Recoil Reduction 2 Offensive Hacking 10 Relay Coupler Types 1 Relay Coupler Value 28 Item Schematics ----------------- Lgt. Treads | -10/Mines | Hacked Lgt. Armor Plating | -10/Mines | Hacked Armor Integrity Analyzer | -9/Materials | Scanalyzed Huge Storage Unit | -9/Materials | Scanalyzed Hrd. Medium Armor Plating | -9/Materials | Scanalyzed Adv. Treads | -9/Materials | Scanalyzed Lgt. EM Pulse Cannon | -9/Materials | Extracted Med. Battery | -9/Materials | Extracted Seismic Detector | -9/Materials | Extracted Imp. Light Cannon | -9/Materials | Extracted Mining Laser | -9/Materials | Extracted Fission Core | -7/Factory | Scanalyzed Remote Datajack | -7/Factory | Scanalyzed Plasma Cutter | -7/Factory | Scanalyzed Weight Redist. System | -7/Factory | Extracted Com. Wheel | -7/Factory | Extracted Adv. Assault Cannon | -7/Factory | Scanalyzed Med. Insulated Plating | -7/Factory | Extracted Robot Schematics ------------------ None Fabricated ------------ Nothing Repaired ---------- Lgt. Treads | 73% | -10/Materials Hrd. Medium Armor Plating | 50% | -9/Storage Imp. Assault Rifle | 37% | -9/Storage Remote Datajack | 95% | -7/Factory | Broken Adv. Treads | 18% | -7/Factory Cld. Ion Engine | 15% | -7/Factory Alien Tech Used ----------------- None Achievements -------------- None Challenges ------------ None Game ------ Seed DimensionalFusionModule Manual? 0 Play Time 01:12:29 Cumulative 295.6 hours Start 2025.04.29 @ 10:14:09 End 2025.04.30 @ 21:44:21 Sessions 5 Manual Loads 0 Difficulty Adventurer Special Mode None Game No. 130 Rogue 82 Adventurer 44 Explorer 4 Win Type - Total 9 Types 3/2/0/1/1/1/0/1/0/0 Lore% 70 Gallery% 69 Achievement% 73 Wizard Run 0 Options --------- Layout 0 ASCII 0 Keyboard 0 Movement Arrows Keybinds 0 Fullscreen 2 Font 18/SmallcapsGlow Map View 76x50 Zoom Use 0% Tactical HUD 1 Map Filters NONE Filters NONE Steam 1 RUN: 46941d5a-5152-495e-b432-2903fd943272